{"text_format":"1","workbook":"xlsx","n_sheets":8,"sheets":["Part 8 Building Envelope Report","Part 8 Lighting Report","Part 8 HVAC Report","Part 8 SWH Report","Part 8 EnergyEfficiency Report","Part 8 Performance Summary","Part 3 Det.Trade-off Summary","Sheet8"],"not_rendered":{"charts":0,"images":2,"macros":1,"external_links":1,"defined_names":5,"comments":0,"pivot_tables":0},"unopened":[],"bounds":{"document_bytes":16777216,"sheet_cells":100000,"rows_first":2000,"rows_last":500,"rows_between":2000,"halvings":0,"cell_chars":16384,"cell_head_chars":4096},"cells_cut":0,"cells_raw":0,"read":"whole","date_system":"1900"}

{"sheet":"Part 8 Building Envelope Report","index":0,"n_rows":54,"n_cols":13,"rows_kept":54,"cut":false,"hidden":false,"merged":[[44,9,44,12],[44,0,44,4],[53,0,56,9],[52,0,52,12],[16,0,17,12],[48,0,48,12],[49,0,49,12],[50,0,50,12],[51,0,51,12],[43,5,43,8],[44,5,44,8],[45,5,45,8],[46,5,46,8],[47,5,47,8],[46,9,46,12],[38,9,39,12],[47,9,47,12],[41,9,41,12],[42,9,42,12],[35,5,35,8],[43,9,43,12],[34,0,34,4],[10,0,11,12],[43,0,43,4],[42,5,42,8],[37,5,37,8],[38,5,39,8],[40,5,40,8],[29,10,29,11],[30,10,30,11],[30,8,30,9],[29,8,29,9],[36,5,36,8],[31,0,31,12],[34,5,34,8],[20,3,20,4],[20,5,20,7],[19,1,19,7],[0,0,6,12],[8,0,8,12],[47,0,47,4],[46,0,46,4],[45,0,45,4],[35,0,35,4],[36,0,36,4],[37,0,37,4],[40,0,40,4],[38,0,39,4],[41,0,41,4],[42,0,42,4],[21,6,23,6],[21,7,23,7],[19,12,23,12],[21,1,23,1],[12,0,12,1],[15,0,15,1],[12,2,12,7],[13,2,13,7],[14,2,14,7],[15,2,15,7],[25,8,25,9],[25,10,25,11],[13,0,13,1],[14,0,14,1],[24,8,24,9],[24,10,24,11],[12,8,15,12],[19,0,23,0],[20,1,20,2],[18,0,18,12],[19,10,23,11],[19,8,23,9],[21,2,23,2],[21,3,23,3],[21,5,23,5],[21,4,23,4],[53,10,56,12],[28,10,28,11],[26,8,26,9],[26,10,26,11],[27,8,27,9],[27,10,27,11],[28,8,28,9],[37,9,37,12],[41,5,41,8],[45,9,45,12],[32,10,32,12],[33,0,33,12],[34,9,34,12],[35,9,35,12],[36,9,36,12],[40,9,40,12]]}
[]
[]
[]
[]
[]
[]
[]
["Report Submission for:",null,null,null,"Detailed Trade-Off*",null,null,null,"Part 8 Performance Energy Modeling"]
["*If Detailed Trade-Off is selected, please submit only this Report and the Detailed Trade-Off Summary."]
["Report Submitted for:",null,null,null,"Building Permit Application ",null,null,null,"Schedule C/Occupancy Verification"]
["Statement of Compliance - National Energy Code of Canada for Buildings 2011                                                                                 Summary Compliance Report to NECB Part 8  - Energy Model "]
[]
["Project Name:",null,null,null,null,null,null,null,"Building Permit Number \n(Completed Internally)"]
["Project Address:"]
["Applicant Name:"]
["Applicant Address:"]
[]
[]
["Opaque Surfaces Summary"]
["Description of Assembly","Location of Component in Envelope Assembly",null,null,null,null,null,null,"Overall Thermal Transmittance\n(U-value), W/(m2xK)",null,"Component Surface\nArea (M2)",null,"UA Value\n(U x Area)\nW/K"]
[null,"Roof",null,"Wall",null,"Floor"]
[null,"Above-ground","In contact w ground","Above-ground","In contact w ground","Above-ground","In contact w ground","In contact w ground, heated"]
[]
[]
[]
[]
[]
[]
[]
[]
["TOTAL:",{"$f":"SUM(INDIRECT(\"B28:B\"&ROW()-1))","v":0},{"$f":"SUM(INDIRECT(\"C28:C\"&ROW()-1))","v":0},{"$f":"SUM(INDIRECT(\"D28:D\"&ROW()-1))","v":0},{"$f":"SUM(INDIRECT(\"E28:E\"&ROW()-1))","v":0},{"$f":"SUM(INDIRECT(\"F28:F\"&ROW()-1))","v":0},{"$f":"SUM(INDIRECT(\"G28:G\"&ROW()-1))","v":0},{"$f":"SUM(INDIRECT(\"H28:H\"&ROW()-1))","v":0},"TOTAL:",null,{"$f":"SUM(INDIRECT(\"K28:K\"&ROW()-1))","v":0}]
[]
[]
["Summary of Building Envelope Areas & Ratios"]
["Envelope Parameters",null,null,null,null,"Proposed Building Design",null,null,null,"Reference Building Design"]
["Gross above-ground wall area (M2)"]
["Total Window Area (M2)"]
["Total Exterior Door Area (M2)"]
["Ratio total vertical fenestration & door area to gross wall area (FDWR)*"]
[]
["Gross Roof Area (M2)"]
["Total Skylight area (M2)"]
["Ratio total skylight area to gross roof area"]
["Total exposed floor areas (M2)"]
["Total wall in contact with the ground areas (M2)"]
["Total roof in contact with the ground areas (M2)"]
["Total floor in contact with the ground areas (M2)"]
["TOTAL:",null,null,null,null,{"$f":"SUM(F36:I47)","v":0},null,null,null,{"$f":"SUM(J36:M47)","v":0}]
["Proposed efficiency exceeds Reference:"]
[{"$f":"IF(AND(F48<=J48), \"Yes\",\"No\")","v":"Yes"}]
["FDWR Proposed Ratios exceeds Reference:"]
[{"$f":" IF(AND(F39<=K39), \"Yes\",\"No\")","v":"Yes"}]
[]
["Consultant information:"]

{"sheet":"Part 8 Lighting Report","index":1,"n_rows":44,"n_cols":12,"rows_kept":44,"cut":false,"hidden":false,"merged":[[19,8,19,9],[19,11,19,12],[38,11,39,12],[36,11,37,12],[24,0,24,12],[25,4,25,12],[31,4,31,12],[35,0,35,6],[29,4,29,12],[36,0,37,4],[33,11,33,12],[35,7,35,12],[36,5,37,6],[34,0,34,12],[38,0,39,4],[36,7,37,10],[32,0,32,12],[31,0,31,3],[23,3,23,4],[30,0,30,3],[30,4,30,12],[29,0,29,3],[23,10,23,12],[26,0,26,3],[26,4,26,12],[23,8,23,9],[23,5,23,7],[9,0,9,12],[10,0,10,12],[11,0,11,12],[13,8,15,9],[13,10,15,10],[13,5,15,7],[13,0,15,0],[13,11,15,12],[13,1,15,2],[13,3,15,4],[38,5,39,6],[38,7,39,10],[25,0,25,3],[23,1,23,2],[0,0,0,12],[4,9,7,12],[7,0,7,1],[6,0,6,1],[5,0,5,1],[4,0,4,1],[4,2,4,8],[5,2,5,8],[6,2,6,8],[7,2,7,8],[2,0,3,12],[8,0,8,12],[43,10,46,12],[43,0,46,9],[20,1,20,2],[42,0,42,12],[40,0,40,12],[41,0,41,12],[20,3,20,4],[20,5,20,7],[20,8,20,9],[20,11,20,12],[28,0,28,3],[28,4,28,12],[27,0,27,3],[27,4,27,12],[21,1,21,2],[22,11,22,12],[21,11,21,12],[22,1,22,2],[18,1,18,2],[18,3,18,4],[18,5,18,7],[18,8,18,9],[18,11,18,12],[22,5,22,7],[22,8,22,9],[21,3,21,4],[21,5,21,7],[21,8,21,9],[22,3,22,4],[19,1,19,2],[19,3,19,4],[19,5,19,7],[17,1,17,2],[17,3,17,4],[17,5,17,7],[17,8,17,9],[17,11,17,12],[16,1,16,2],[16,3,16,4],[16,5,16,7],[16,8,16,9],[16,11,16,12]]}
[]
["Report Submitted for:",null,null,null,"Building Permit Application",null,null,null,null,"Schedule C/Occupancy Verification"]
["Statement of Compliance - National Energy Code of Canada for Buildings 2011                                                                                 Summary Compliance Report to NECB Part 8  - Energy Model "]
[]
["Project Name:",null,null,null,null,null,null,null,null,"Building Permit Number \n(Completed Internally)"]
["Project Address:"]
["Applicant Name:"]
["Applicant Address:"]
["Lighting Summaries"]
["Does exterior lighting meet prescriptive requirements?      YES     or       NO   "]
[]
["Summary of Installed Lighting Power & Controls in Conditioned Spaces"]
[]
["Building /Space Type","Lighting Power Density (LPD), W/M2",null,"Floor Area (M2)",null,"Installed Lighting Power ((LPD x Area)/1000)), kW",null,null,"Lighting Allowance      ((LPDxArea)/1000)), kW ",null,"Control Type","Control Factor "]
[]
[]
[]
[]
[]
[]
[]
[]
[]
["TOTAL:",{"$f":"SUM(INDIRECT(\"B17:B\"&ROW()-1))","v":0},null,{"$f":"SUM(INDIRECT(\"D17:D\"&ROW()-1))","v":0},null,{"$f":"SUM(INDIRECT(\"G17:G\"&ROW()-1))","v":0},null,null,{"$f":"SUM(INDIRECT(\"I17:I\"&ROW()-1))","v":0}]
[]
["Space Type",null,null,null,"Justification for Exemption"]
[]
[]
[]
[]
[]
[]
[]
[]
["Lighting Power Summary"]
["Proposed Building Design ",null,null,null,null,null,null,"Reference Building Design "]
["Installed Interior Lighting Power in Conditioned Spaces (k/W)",null,null,null,null,{"$f":"F24","v":0},null,"Installed Interior Lighting Power Allowance (k/W)",null,null,null,{"$f":"I24","v":0}]
[]
["Average Installed Lighting Power Density\n(W/m2)",null,null,null,null,{"$f":"D24*F24","v":0},null,"Average Lighting Power Allowance Density (W/m2)",null,null,null,{"$f":"I24*D24","v":0}]
[]
["Does Proposed exceed Reference in efficiency? "]
[{"$f":"IF(AND(F37<=L37, F39<=L39),\"Yes\",\"No\")","v":"Yes"}]
[]
["Consultant information:\n"]

{"sheet":"Part 8 HVAC Report","index":2,"n_rows":42,"n_cols":15,"rows_kept":42,"cut":false,"hidden":false,"merged":[[41,0,44,10],[41,11,44,16],[8,0,9,16],[10,0,10,16],[18,0,18,16],[17,0,17,16],[24,3,24,7],[11,8,11,11],[16,8,16,11],[11,12,11,16],[16,12,16,16],[11,0,11,2],[16,0,16,2],[24,8,24,11],[24,12,24,16],[23,0,23,2],[11,3,11,7],[15,0,15,2],[15,3,15,7],[22,0,22,2],[22,8,22,11],[12,0,12,2],[12,3,12,7],[12,8,12,11],[36,2,37,4],[22,12,22,16],[15,8,15,11],[15,12,15,16],[20,8,20,11],[20,12,20,16],[19,0,19,2],[19,3,19,7],[19,8,19,11],[19,12,19,16],[16,3,16,7],[20,0,20,2],[20,3,20,7],[21,0,21,2],[21,3,21,7],[21,8,21,11],[29,8,30,10],[21,12,21,16],[22,3,22,7],[23,12,23,16],[24,0,24,2],[25,0,25,16],[40,0,40,16],[33,0,33,16],[34,11,35,13],[34,14,35,16],[36,14,37,16],[35,5,35,7],[39,0,39,16],[36,11,37,13],[34,0,35,1],[34,2,34,7],[34,8,35,10],[35,2,35,4],[36,5,37,7],[36,8,37,10],[38,0,38,16],[36,0,37,1],[0,0,0,16],[4,11,7,16],[4,0,4,2],[5,0,5,2],[6,0,6,2],[7,0,7,2],[4,3,4,10],[5,3,5,10],[6,3,6,10],[7,3,7,10],[2,0,3,16],[12,12,12,16],[14,0,14,2],[14,3,14,7],[14,8,14,11],[14,12,14,16],[13,0,13,2],[13,3,13,7],[13,8,13,11],[13,12,13,16],[31,0,32,1],[31,14,32,16],[23,3,23,7],[23,8,23,11],[29,14,30,16],[31,5,32,7],[31,8,32,10],[31,11,32,13],[29,11,30,13],[31,2,32,4],[29,0,30,1],[26,0,27,16],[28,0,28,16],[30,5,30,7],[30,2,30,4],[29,2,29,7]]}
[]
["Report Submission for:",null,null,null,null,"Building Permit Application",null,null,null,null,"Schedule C/Occupancy Verification"]
["Statement of Compliance - National Energy Code of Canada for Buildings 2011                                                                                 Summary Compliance Report to NECB Part 8  - Energy Model "]
[]
["Project Name:",null,null,null,null,null,null,null,null,null,null,"Building Permit Number \n(Completed Internally)"]
["Project Address:"]
["Applicant Name:"]
["Applicant Address:"]
["HVAC Systems Summaries"]
[]
["Summary of Proposed HVAC Systems Details "]
["System Type",null,null,"Equipment Description ",null,null,null,null,"Equipment Efficiencies",null,null,null,"Additional Notes"]
[]
[]
[]
[]
[]
[]
["Summary of Reference HVAC Systems Details "]
["System Type",null,null,"Equipment Description ",null,null,null,null,"Equipment Efficiencies",null,null,null,"Additional Notes"]
[]
[]
[]
[]
[]
[]
["Statement of Compliance"]
[]
["Summary of Monthly Energy Usage of Proposed Building Design "]
["Means of Consumption",null,"Electricity ",null,null,null,null,null,"Natural Gas (M3)",null,null,"Oil (L)",null,null,"Propane (L)"]
[null,null,"kWh",null,null,"kW"]
[" ANNUAL TOTALS:"]
[]
["Summary of Monthly Energy Usage of Reference Building Design "]
["Means of Consumption",null,"Electricity ",null,null,null,null,null,"Natural Gas (M3)",null,null,"Oil (L)",null,null,"Propane (L)"]
[null,null,"kWh",null,null,"kW"]
[" ANNUAL TOTALS:"]
[]
["Does the Proposed design exceed the Reference in efficiency?"]
[{"$f":"IF(AND(C32<=C37,F32<=F37, I32<=I37,L32<=L37,O32<=O37), \"Yes\")","v":"Yes"}]
[]
["Consultant information:"]

{"sheet":"Part 8 SWH Report","index":3,"n_rows":44,"n_cols":15,"rows_kept":44,"cut":false,"hidden":false,"merged":[[43,0,46,10],[10,0,10,16],[8,0,9,16],[43,11,46,16],[13,0,13,2],[13,3,13,7],[13,8,13,11],[13,12,13,16],[17,12,17,16],[17,8,17,11],[11,0,11,2],[11,3,11,7],[11,8,11,11],[11,12,11,16],[12,0,12,2],[12,3,12,7],[12,8,12,11],[18,0,18,16],[21,0,21,2],[21,3,21,7],[21,8,21,11],[38,0,39,1],[38,2,39,4],[38,5,39,7],[0,0,0,16],[4,11,7,16],[7,0,7,1],[6,0,6,1],[5,0,5,1],[4,0,4,1],[4,2,4,10],[5,2,5,10],[6,2,6,10],[7,2,7,10],[2,0,3,16],[38,8,39,10],[38,11,39,13],[38,14,39,16],[36,11,37,13],[36,14,37,16],[37,2,37,4],[37,5,37,7],[36,8,37,10],[21,12,21,16],[19,0,19,16],[20,0,20,2],[20,3,20,7],[20,8,20,11],[20,12,20,16],[30,0,31,1],[30,2,30,7],[30,8,31,10],[23,0,23,2],[23,3,23,7],[23,8,23,11],[23,12,23,16],[22,0,22,2],[22,3,22,7],[22,8,22,11],[22,12,22,16],[36,0,37,1],[36,2,36,7],[25,0,25,2],[25,3,25,7],[25,8,25,11],[25,12,25,16],[24,0,24,2],[24,3,24,7],[24,8,24,11],[24,12,24,16],[32,5,33,7],[32,8,33,10],[32,11,33,13],[32,14,33,16],[26,0,26,16],[32,0,33,1],[32,2,33,4],[27,0,28,16],[29,0,29,16],[40,0,40,16],[41,0,41,16],[42,0,42,16],[30,11,31,13],[30,14,31,16],[31,2,31,4],[31,5,31,7],[12,12,12,16],[14,12,14,16],[16,0,16,2],[16,3,16,7],[16,8,16,11],[16,12,16,16],[15,0,15,2],[15,3,15,7],[15,8,15,11],[15,12,15,16],[14,0,14,2],[14,3,14,7],[14,8,14,11],[17,0,17,2],[17,3,17,7],[34,0,34,16],[35,0,35,16]]}
[]
["Report Submission for:",null,null,null,"Building Permit Application",null,null,null,null,null,null,"Schedule C/Occupancy Verification"]
["Statement of Compliance - National Energy Code of Canada for Buildings 2011                                                                                 Summary Compliance Report to NECB Part 8  - Energy Model "]
[]
["Project Name:",null,null,null,null,null,null,null,null,null,null,"Building Permit Number \n(Completed Internally)"]
["Project Address:"]
["Applicant Name:"]
["Applicant Address:"]
["Service Water Heating Systems Summaries"]
[]
["Summary of Proposed Service Water Heating Systems Details "]
["System Type",null,null,"Equipment Description ",null,null,null,null,"Equipment Efficiencies",null,null,null,"Additional Notes"]
[]
[]
[]
[]
[]
[]
[]
["Summary of Reference Service Water Heating Systems Details "]
["System Type",null,null,"Equipment Description ",null,null,null,null,"Equipment Efficiencies",null,null,null,"Additional Notes"]
[]
[]
[]
[]
[]
[]
["Statement of Compliance"]
[]
["Summary of Monthly Energy Usage of Proposed Building Design "]
["Means of Consumption",null,"Electricity ",null,null,null,null,null,"Natural Gas (M3)",null,null,"Oil (L)",null,null,"Propane (L)"]
[null,null,"kWh",null,null,"kW"]
[" ANNUAL TOTALS:"]
[]
[]
["Summary of Monthly Energy Usage of Reference Building Design "]
["Means of Consumption",null,"Electricity ",null,null,null,null,null,"Natural Gas (M3)",null,null,"Oil (L)",null,null,"Propane (L)"]
[null,null,"kWh",null,null,"kW"]
[" ANNUAL TOTALS:"]
[]
["Does the Proposed design exceed the Reference in efficiency?"]
[{"$f":"IF(AND(C33<=C39,F33<=F39, I33<=I39,L33<=L39,O33<=O39), \"Yes\")","v":"Yes"}]
[]
["Consultant information"]

{"sheet":"Part 8 EnergyEfficiency Report","index":4,"n_rows":31,"n_cols":13,"rows_kept":31,"cut":false,"hidden":false,"merged":[[25,18,26,18],[27,0,27,12],[28,0,28,12],[29,0,29,12],[25,10,26,10],[25,11,26,11],[25,12,26,12],[25,15,26,15],[25,16,26,16],[25,17,26,17],[25,0,26,3],[25,4,26,4],[25,5,26,5],[25,6,26,6],[25,7,26,7],[0,0,0,12],[2,0,3,12],[4,0,4,2],[4,3,4,7],[25,9,26,9],[19,0,19,3],[20,0,20,3],[21,0,21,3],[22,0,22,3],[23,0,23,3],[24,0,24,3],[18,0,18,3],[8,0,9,12],[10,0,10,12],[11,0,12,3],[11,4,11,7],[30,9,33,12],[30,0,33,8],[11,15,11,18],[5,0,5,2],[5,3,5,7],[6,0,6,2],[6,3,6,7],[7,0,7,2],[7,3,7,7],[4,8,7,12],[11,9,11,12],[13,0,13,3],[14,0,14,3],[15,0,15,3],[16,0,16,3],[17,0,17,3]]}
[]
["Report Submitted for:",null,null,"Building Permit Application",null,null,null,"Schedule C/Occupancy Verification"]
["Statement of Compliance - National Energy Code of Canada for Buildings 2011                                                                                 Summary Compliance Report to NECB Part 8  - Energy Model "]
[]
["Project Name:",null,null,null,null,null,null,null,"Building Permit Number \n(Completed Internally)"]
["Project Address:"]
["Applicant Name:"]
["Applicant Address:"]
[]
[]
["Summary of Energy Usage per End Use"]
["End Use",null,null,null,"Energy Use in Proposed Building Design",null,null,null,null,"Energy Use in Reference Building Design"]
[null,null,null,null,"Electricity MJ/yr","Fossil Fuel MJ/yr","Total MJ/yr","End Use Contribution %",null,"Electricity MJ/yr","Fossil Fuel MJ/yr","Total MJ/yr","End Use Contribution %"]
["Space heating"]
["Space cooling"]
["Heat rejection"]
["Interior lighting"]
["Service water heating equipment"]
["Fans"]
["Pumps"]
["Other HVAC equipment"]
["Other miscellaneous equipment"]
["Receptacle power equipment (receptacle loads)"]
["Total building annual energy consumption, MJ"]
["Total building energy consumption, equivalent kWh"]
["TOTAL:",null,null,null,{"$f":"SUM(E14:E25)","v":0},{"$f":"SUM(F14:F25)","v":0},0,0,null,{"$f":"SUM(J14:J25)","v":0},{"$f":"SUM(K14:K25)","v":0},0,{"$f":"SUM(M14:M25)","v":0}]
[]
["Does the Proposed design exceed the Reference in efficiency?"]
[{"$f":"IF(AND(P26<=J26,Q26<=K26,R26<=L26,S26<=M26),\"Yes\",\"No\")","v":"Yes"}]
[]
["Consultant information:"]

{"sheet":"Part 8 Performance Summary","index":5,"n_rows":44,"n_cols":12,"rows_kept":44,"cut":false,"hidden":false,"merged":[[43,0,46,9],[42,0,42,12],[41,0,41,12],[33,5,35,6],[33,7,35,8],[33,9,35,10],[33,11,35,12],[36,0,40,3],[36,4,40,4],[36,5,36,12],[37,5,38,6],[37,7,38,8],[37,9,38,10],[37,11,38,12],[43,10,46,12],[27,0,27,3],[27,4,27,8],[27,9,28,12],[28,4,28,8],[39,5,40,6],[39,7,40,8],[39,9,40,10],[39,11,40,12],[28,0,28,3],[30,5,30,12],[31,5,32,6],[31,7,32,8],[31,9,32,10],[31,11,32,12],[30,0,35,4],[29,0,29,12],[25,1,25,6],[25,7,25,9],[25,10,25,12],[26,1,26,6],[26,7,26,9],[26,10,26,12],[23,1,23,6],[23,7,23,9],[23,10,23,12],[24,1,24,6],[24,7,24,9],[24,10,24,12],[21,1,21,6],[21,7,21,9],[21,10,21,12],[22,1,22,6],[22,7,22,9],[22,10,22,12],[20,10,20,12],[0,0,0,12],[13,0,13,12],[8,0,9,12],[12,0,12,12],[10,1,10,12],[4,8,7,12],[11,1,11,12],[2,0,3,12],[14,0,17,12],[18,0,18,6],[18,7,18,9],[18,10,18,12],[4,0,4,1],[4,2,4,7],[5,2,5,7],[6,2,6,7],[7,2,7,7],[20,1,20,6],[20,7,20,9],[19,1,19,6],[19,7,19,9],[19,10,19,12],[5,0,5,1],[6,0,6,1],[7,0,7,1]]}
[]
["Report Submission for:",null,null,null,"Building Permit Application",null,null,null,"Schedule C/Occupancy Verification"]
["Statement of Compliance - National Energy Code of Canada for Buildings 2011                                                                                 Summary Report to NECB Part 8  - Performance Model"]
[]
["Project Name:",null,null,null,null,null,null,null,"Building Permit Number \n(Completed Internally)"]
["Project Address:"]
["Applicant Name:"]
["Applicant Address:"]
["Please note that this Performance Compliance Summary must be accompanied by an NECB Part 8 Energy Model Report at the time of submission. The applicant can choose to submit their own report generated by energy modelling software or complete and submit the reports contained within this document. Both forms of report should include:                                           "]
[]
[null,"1. Illustrations in plans & sections of thermal blocks used in modelling for the proposed and reference buildings"]
[null,"2. All relevant information as required in NECB Division C 2.2.2.8."]
["Statement of Compliance - National Energy Code for Buildings"]
["General Conditions Checklist"]
["The Coordinating Professional hereby certifies that the proposed building design represented in the construction documents and modelled for this permit application are consistent with all other forms and worksheets, specifications and other calculations submitted with this permit application. The proposed building, as designed, meets the requirements of the NECB"]
[]
[]
[]
["Required Details",null,null,null,null,null,null,"Reference",null,null,"Proposed"]
[1,"Indicate Software used - including version: \n",null,null,null,null,null," ",null,null," "]
[2,"Indicate Operating Schedule used: \n"]
[3,"Thermal mass accounted for: \n"]
[4,"Daylighting has been taken into account: \n"]
[5,"Interior heat gain has been accounted for: \n"]
[6,"Air leakage (L/m²·s): \n"]
[7,"Solar Properties of glazing: \n"]
[8,"Additional occupancy/daylight sensors accounted for: "]
["Coordinating Professional:",null,null,null,null,null,null,null,null,"Date:"]
["Signature:"]
["National Energy Code of Canada for Buildings - 2011 Summary Compliance Results"]
["Energy Use Totals:",null,null,null,null,"Energy Output of Reference Building Design "]
[null,null,null,null,null,"Electricity MJ/yr",null,"Fossil Fuel MJ/yr",null,"Total MJ/yr",null,"End Use Contribution %"]
[]
[null,null,null,null,null,{"$f":"IF($E$37=FALSE,'Part 8 EnergyEfficiency Report'!J26,\"\")","v":0},null,{"$f":"IF($E$37=FALSE,'Part 8 EnergyEfficiency Report'!K26,\"\")","v":0},null,{"$f":"IF($E$37=FALSE,'Part 8 EnergyEfficiency Report'!L26,\"\")","v":0},null,{"$f":"IF($E$37=FALSE,'Part 8 EnergyEfficiency Report'!M26,\"\")","v":0}]
[]
[]
["Are you submitting independent reports? (Check box if Yes)",null,null,null,false,"Energy Output of Proposed Building Design "]
[null,null,null,null,null,"Electricity MJ/yr",null,"Fossil Fuel MJ/yr",null,"Total MJ/yr",null,"End Use Contribution %"]
[]
[null,null,null,null,null,{"$f":"IF($E$37=FALSE,'Part 8 EnergyEfficiency Report'!E26,\"\")","v":0},null,{"$f":"IF($E$37=FALSE,'Part 8 EnergyEfficiency Report'!F26,\"\")","v":0},null,{"$f":"IF($E$37=FALSE,'Part 8 EnergyEfficiency Report'!G26,\"\")","v":0},null,{"$f":"IF($E$37=FALSE,'Part 8 EnergyEfficiency Report'!H26,\"\")","v":0}]
[]
["Does the Proposed Design exceed the Reference design in energy efficiency?"]
[{"$f":"IF(AND(F34>=F40, H34>=H40, J34>=J40, L34>=L40), \"Yes\",\"No\")","v":"Yes"}]
["Consultant information:"]

{"sheet":"Part 3 Det.Trade-off Summary","index":6,"n_rows":43,"n_cols":11,"rows_kept":43,"cut":false,"hidden":false,"merged":[[34,7,35,9],[36,10,37,12],[36,7,37,9],[38,0,39,12],[27,1,27,6],[27,7,27,9],[27,10,27,12],[42,0,45,9],[28,0,28,3],[32,7,33,12],[28,4,28,8],[29,0,29,3],[32,0,34,6],[28,9,29,12],[29,4,29,8],[42,10,45,12],[35,5,37,6],[35,0,37,4],[40,0,41,12],[34,10,35,12],[25,1,25,6],[25,7,25,9],[25,10,25,12],[26,1,26,6],[26,7,26,9],[26,10,26,12],[7,0,7,1],[4,2,4,7],[23,10,23,12],[24,1,24,6],[24,7,24,9],[24,10,24,12],[19,7,19,9],[19,10,19,12],[0,0,0,12],[13,0,13,12],[2,0,3,12],[8,0,8,12],[9,0,10,12],[11,1,11,12],[4,8,7,12],[1,8,1,12],[1,4,1,7],[1,0,1,3],[12,1,12,12],[4,0,4,1],[5,0,5,1],[6,0,6,1],[5,2,5,7],[6,2,6,7],[7,2,7,7],[30,0,31,12],[22,7,22,9],[22,10,22,12],[23,1,23,6],[23,7,23,9],[20,1,20,6],[21,1,21,6],[21,7,21,9],[21,10,21,12],[22,1,22,6],[14,0,14,12],[15,0,18,12],[19,0,19,6]]}
[]
["Report Submission for:",null,null,null,"Building Permit Application",null,null,null,"Schedule C/Occupancy Verification"]
["Statement of Compliance - National Energy Code of Canada for Buildings 2011                                                                                 Summary Report to NECB Part 3  - Envelope Energy Model "]
[]
["Project Name:",null,null,null,null,null,null,null,"Building Permit Number \n(Completed Internally)"]
["Project Address:"]
["Applicant Name:"]
["Applicant Address:"]
[]
["Please note that this Performance Compliance Summary must be accompanied by an NECB Part 8 Energy Model Report at the time of submission. The applicant can choose to submit their own reports generated by energy modelling software or they can complete and submit the reports contained within this document. Both forms of report should include:                                           "]
[]
[null,"1. Illustrations in plans & sections of thermal blocks used in modeling for the proposed and reference buildings"]
[null,"2. All relevant information as required in NECB Division C 2.2.2.8."]
["Statement of Compliance - National Energy Code for Buildings"]
["General Conditions Checklist"]
["The Coordinating Professional hereby certifies that the proposed building design represented in the construction documents and modelled for this permit application are consistent with all other forms and worksheets, specifications and other calculations submitted with this permit application. The proposed building, as designed, meets the requirements of the NECB"]
[]
[]
[]
["Required Details",null,null,null,null,null,null,"Reference",null,null,"Proposed"]
[1,"Indicate Software used - including version: \n",null,null,null,null,null," ",null,null," "]
[2,"Indicate Operating Schedule used: \n"]
[3,"Thermal mass accounted for: \n"]
[4,"Daylighting has been taken into account: \n"]
[5,"Interior heat gain has been accounted for: \n"]
[6,"Air leakage (L/m²·s): \n"]
[7,"Solar Properties of glazing: \n"]
[8,"Additional occupancy/daylight sensors accounted for: "]
["Coordinating Professional:",null,null,null,null,null,null,null,null,"Date:"]
["Signature:"]
["National Energy Code of Canada for Buildings - 2011 Summary Results"]
[]
["Envelope Totals:",null,null,null,null,null,null,"Summary of Building Envelope Areas & Ratios"]
[]
[null,null,null,null,null,null,null,"Proposed Building ",null,null,"Reference Building "]
["Are you submitting an independent building envelope report? (Check box if Yes)",null,null,null,null,false]
[null,null,null,null,true,null,null,{"$f":"IF(F36=FALSE,'Part 8 Building Envelope Report'!$F$48:$I$48,\"\")","v":0},null,null,{"$f":"IF(F36=FALSE,'Part 8 Building Envelope Report'!$J$48:$M$48,\"\")","v":0}]
[]
["Does the Proposed Envelope design exceed the Reference design in energy efficiency?"]
[]
[{"$f":"IF(AND(H37<=K37), \"Yes\",\"No\")","v":"Yes"}]
[]
["Consultant information:"]

{"sheet":"Sheet8","index":7,"n_rows":0,"n_cols":0,"rows_kept":0,"cut":false,"hidden":true,"merged":[[0,8,0,9],[0,10,0,11],[1,1,1,2],[1,3,1,4],[1,5,1,7],[1,8,1,9],[1,11,1,12],[2,0,2,3],[2,4,2,12],[3,0,3,2],[3,3,3,7],[3,8,3,11],[3,12,3,16],[6,0,6,2],[6,3,6,7],[6,8,6,11],[6,12,6,16],[4,0,4,2],[4,3,4,7],[4,8,4,11],[4,12,4,16],[5,0,5,2],[5,3,5,7],[5,8,5,11],[5,12,5,16]]}